lending/lending_fUSD_20250808
["ID","MTS","AMOUNT","RATE_DAILY","PERIOD"]
[377989964,1754651464088,-500.0,0.00019422,2]
[377989965,1754651464099,-500.0,0.00019422,2]
[377989966,1754651464110,-500.0,0.00019422,2]
[377989967,1754651464120,-500.0,0.00019422,2]
[377989968,1754651464131,-500.0,0.00019422,2]
[377989969,1754651464141,-500.0,0.00019422,2]
[377989970,1754651464153,-510.0,0.00019422,2]
[377989971,1754651464163,-500.0,0.00019422,2]
[377989972,1754651464174,-500.0,0.00019422,2]
[377989973,1754651464185,-500.0,0.00019422,2]
[377989974,1754651464195,-200.0,0.0001951,2]
[377989975,1754651464206,-1000.0,0.00019521,2]
[377989976,1754651464217,-1000.0,0.00019521,2]
[377989977,1754651464227,-1137.80203158,0.00019521,2]
[377989978,1754651464239,-1139.29020391,0.00019521,2]
[377989979,1754651464250,-214.36303346,0.00019521,2]
[377989980,1754651464260,-902.82300964,0.00019521,2]
[377989981,1754651464270,-752.00590759,0.00019521,2]
[377989982,1754651464284,-168.0,0.00019528,2]
[377989983,1754651464294,-273.02,0.00019538,2]
[377989984,1754651464304,-1313.36,0.00019545,2]
[377989985,1754651464315,-1318.82,0.00019545,2]
[377989986,1754651464327,-1052.0,0.00019545,2]
[377989987,1754651464338,-1682.81,0.00019545,2]
[377989988,1754651464348,-2036.27,0.00019545,2]
[377989989,1754651464358,-500.0,0.00019573,2]
[377989990,1754651464368,-500.0,0.00019573,2]
[377989991,1754651464377,-500.0,0.00019573,2]
[377989992,1754651464387,-151.0,0.00019576,2]
[377989993,1754651464397,-1085.27,0.00019584,2]
[377989994,1754651464407,-1201.74,0.00019584,2]
[377989995,1754651464418,-1020.15,0.00019584,2]
[377989996,1754651464428,-1170.38,0.00019584,2]
[377989997,1754651464438,-1351.52,0.00019584,2]
[377989998,1754651464448,-451.58,0.00019584,2]
[377989999,1754651464459,-1342.28,0.00019584,2]
[377990000,1754651464469,-993.22,0.00019584,2]
[377990001,1754651464479,-400.0,0.00019584,2]
[377990002,1754651464489,-1504.26,0.00019584,2]
[377990003,1754651464500,-673.84,0.00019584,2]
[377990004,1754651464510,-1218.31,0.00019584,2]
[377990005,1754651464521,-998.45,0.00019584,2]
[377990006,1754651464531,-2204.29,0.00019584,2]
[377990007,1754651464541,-638.73,0.00019584,2]
[377990008,1754651464551,-1322.64,0.00019584,2]
[377990009,1754651464561,-571.74,0.00019584,2]
[377990010,1754651464571,-652.18,0.00019584,2]
[377990011,1754651464580,-892.48,0.00019584,2]
[377990012,1754651464590,-402.23,0.00019585,2]
[377990013,1754651464600,-400.0,0.00019585,2]
[377990014,1754651464610,-141.67823254,0.00019585,2]
[377990015,1754651464650,-209.76590046,0.00019585,2]
[377990016,1754651464661,-429.086783,0.00019585,2]
[377990017,1754651464671,-1454.42,0.00019585,2]
[377990018,1754651464681,-497.37,0.00019585,2]
[377990019,1754651464690,-327.647211,0.00019585,2]
[377990020,1754651464701,-581.04,0.00019585,2]
[377990021,1754651464712,-400.0,0.00019585,2]
[377990022,1754651464722,-1025.46,0.00019585,2]
[377990023,1754651464732,-5097.54,0.00019585,2]
[377990024,1754651464741,-400.0,0.00019585,2]
[377990025,1754651464752,-669.2,0.00019585,2]
[377990026,1754651464762,-705.36,0.00019585,2]
[377990027,1754651464772,-856.38,0.00019585,2]
[377990028,1754651464782,-850.69,0.00019585,2]
[377990029,1754651464792,-827.46,0.00019585,2]
[377990030,1754651464802,-419.98,0.00019585,2]
[377990031,1754651464811,-2193.81,0.00019585,2]
[377990032,1754651464821,-1213.03,0.00019585,2]
[377990033,1754651464831,-1265.2,0.00019585,2]
[377990034,1754651464912,-400.0,0.00019585,2]
[377990035,1754651464922,-696.84,0.00019585,2]
[377990036,1754651464931,-400.0,0.00019585,2]
[377990037,1754651464940,-458.2,0.00019585,2]
[377990038,1754651464950,-400.0,0.00019586,2]
[377990039,1754651464960,-400.0,0.00019586,2]
[377990040,1754651464970,-400.0,0.00019586,2]
[377990041,1754651464980,-400.0,0.00019586,2]
[377990042,1754651464989,-572.65,0.00019586,2]
[377990043,1754651464999,-400.0,0.00019586,2]
[377990044,1754651465009,-400.0,0.00019586,2]
[377990045,1754651465018,-543.48,0.00019586,2]
[377990046,1754651465027,-514.82,0.00019586,2]
[377990047,1754651465036,-407.48,0.00019586,2]
[377990048,1754651465046,-400.0,0.00019586,2]
[377990049,1754651465057,-400.0,0.00019586,2]
[377990050,1754651465067,-852.7,0.00019586,2]
[377990051,1754651465078,-471.58,0.00019586,2]
[377990052,1754651465087,-400.0,0.00019586,2]
[377990053,1754651465096,-591.34,0.00019586,2]
[377990054,1754651465106,-799.25,0.00019586,2]
[377990055,1754651465116,-665.78,0.00019586,2]
[377990056,1754651465126,-400.0,0.00019586,2]
[377990057,1754651465136,-446.97,0.00019586,2]
[377990058,1754651465145,-712.62,0.00019586,2]
[377990059,1754651465154,-400.0,0.00019586,2]
[377990060,1754651465163,-755.04,0.00019586,2]
[377990061,1754651465173,-400.0,0.00019586,2]
[377990062,1754651465182,-615.57,0.00019586,2]
[377990063,1754651465191,-502.39,0.00019586,2]
[377990064,1754651465200,-564.35,0.00019586,2]
[377990065,1754651465209,-883.31,0.00019586,2]
[377990066,1754651465219,-400.0,0.00019586,2]
[377990067,1754651465228,-400.0,0.00019586,2]
[377990068,1754651465239,-492.35,0.00019586,2]
[377990069,1754651465248,-522.08,0.00019586,2]
[377990070,1754651465256,-400.0,0.00019586,2]
[377990071,1754651465266,-1144.07,0.00019586,2]
[377990072,1754651465275,-664.5,0.00019586,2]
[377990073,1754651465290,-400.0,0.00019586,2]
[377990074,1754651465300,-162.6490888,0.00019586,2]
[377990075,1754651465312,-237.3509112,0.00019586,2]
[377990076,1754651465321,-400.0,0.00019586,2]
[377990077,1754651465331,-513.95,0.00019586,2]
[377990078,1754651465340,-586.11,0.00019586,2]
[377990079,1754651465350,-521.39,0.00019586,2]
[377990080,1754651465361,-400.0,0.00019586,2]
[377990081,1754651465370,-1064.13,0.00019586,2]
[377990082,1754651465379,-837.04,0.00019586,2]
[377990083,1754651465388,-400.23,0.00019586,2]
[377990084,1754651465399,-829.78,0.00019586,2]
[377990085,1754651465408,-477.40229076,0.00019586,2]
[377990086,1754651465418,-621.82,0.00019586,2]
[377990087,1754651465428,-1161.3,0.00019586,2]
[377990088,1754651465437,-400.0,0.00019586,2]
[377990089,1754651465446,-539.17,0.00019586,2]
[377990090,1754651465455,-400.0,0.00019586,2]
[377990091,1754651465465,-400.0,0.00019586,2]
[377990092,1754651465474,-1084.62,0.00019586,2]
[377990093,1754651465483,-400.0,0.00019586,2]
[377990094,1754651465492,-151.0,0.00019586,2]
[377990095,1754651465501,-400.0,0.00019586,2]
[377990096,1754651465511,-1688.00199889,0.00019586,2]
[377990097,1754651465522,-191.40800111,0.00019586,2]
[377990098,1754651465531,-711.16,0.00019586,2]
[377990099,1754651465540,-369.20051338,0.00019586,2]
[377990100,1754651465549,-400.0,0.00019586,2]
[377990101,1754651465558,-461.81,0.00019586,2]
[377990102,1754651465567,-434.24,0.00019586,2]
[377990103,1754651465576,-910.35,0.00019586,2]
[377990104,1754651465585,-151.0,0.00019586,2]
[377990105,1754651465594,-400.0,0.00019586,2]
[377990106,1754651465603,-400.0,0.00019586,2]
[377990107,1754651465612,-672.99,0.00019586,2]
[377990108,1754651465621,-706.14,0.00019586,2]
[377990109,1754651465630,-400.0,0.00019586,2]
[377990110,1754651465639,-167.889825,0.00019586,2]
[377990111,1754651465649,-504.59,0.00019586,2]
[377990112,1754651465658,-976.82,0.00019586,2]
[377990113,1754651465668,-151.0,0.00019586,2]
[377990114,1754651465676,-919.01,0.00019586,2]
[377990115,1754651465685,-678.47,0.00019586,2]
[377990116,1754651465694,-400.0,0.00019586,2]
[377990117,1754651465703,-619.47,0.00019586,2]
[377990118,1754651465712,-1436.0,0.00019586,2]
[377990119,1754651465721,-334.98858251,0.00019586,2]
[377990120,1754651465730,-151.0,0.00019586,2]
[377990121,1754651465739,-279.94900723,0.00019586,2]
[377990122,1754651465748,-400.0,0.00019586,2]
[377990123,1754651465759,-400.0,0.00019586,2]
[377990124,1754651465768,-151.0,0.00019586,2]
[377990125,1754651465777,-587.92,0.00019586,2]
[377990126,1754651465786,-424.82,0.00019586,2]
[377990127,1754651465795,-1279.45,0.00019586,2]
[377990128,1754651465804,-151.0,0.00019586,2]
[377990129,1754651465814,-151.0,0.00019586,2]
[377990130,1754651465822,-400.0,0.00019586,2]
[377990131,1754651465831,-700.65,0.00019586,2]
[377990132,1754651465841,-742.39,0.00019586,2]
[377990133,1754651465851,-400.02,0.00019586,2]
[377990134,1754651465862,-1340.2,0.00019586,2]
[377990135,1754651465873,-151.0,0.00019586,2]
[377990136,1754651465884,-400.0,0.00019586,2]
[377990137,1754651465896,-151.0,0.00019586,2]
[377990138,1754651465906,-1453.7,0.00019586,2]
[377990139,1754651465915,-151.0,0.00019586,2]
[377990140,1754651465924,-918.22,0.00019586,2]
[377990141,1754651465934,-151.0,0.00019586,2]
[377990142,1754651465944,-1878.02,0.00019586,2]
[377990143,1754651465953,-12974.18,0.00019586,2]
[377990144,1754651465962,-400.0,0.00019586,2]
[377990145,1754651465972,-714.31,0.00019586,2]
[377990146,1754651465981,-1156.26,0.00019586,2]
[377990147,1754651465991,-472.15,0.00019587,2]
[377990148,1754651466000,-400.0,0.00019587,2]
[377990149,1754651466010,-400.0,0.00019587,2]
[377990150,1754651466020,-613.98,0.00019587,2]
[377990151,1754651466030,-516.82,0.00019587,2]
[377990152,1754651466039,-701.41,0.00019587,2]
[377990153,1754651466049,-400.0,0.00019587,2]
[377990154,1754651466058,-400.78,0.00019587,2]
[377990155,1754651466068,-683.49,0.00019587,2]
[377990156,1754651466077,-578.54,0.00019587,2]
[377990157,1754651466087,-510.66,0.00019587,2]
[377990158,1754651466096,-457.77,0.00019587,2]
[377990159,1754651466105,-400.0,0.00019587,2]
[377990160,1754651466114,-963.39,0.00019587,2]
[377990161,1754651466124,-400.0,0.00019587,2]
[377990162,1754651466133,-609.65,0.00019587,2]
[377990163,1754651466143,-410.02,0.00019587,2]
[377990164,1754651466151,-520.77,0.00019587,2]
[377990165,1754651466160,-400.0,0.00019587,2]
[377990166,1754651466169,-475.76,0.00019587,2]
[377990167,1754651466179,-430.18,0.00019587,2]
[377990168,1754651466188,-400.0,0.00019587,2]
[377990169,1754651466197,-648.05,0.00019587,2]
[377990170,1754651466206,-418.18,0.00019587,2]
[377990171,1754651466215,-400.0,0.00019587,2]
[377990172,1754651466224,-718.73,0.00019587,2]
[377990173,1754651466233,-686.88,0.00019587,2]
[377990174,1754651466243,-807.4,0.00019587,2]
[377990175,1754651466252,-400.0,0.00019587,2]
[377990176,1754651466261,-644.96,0.00019587,2]
[377990177,1754651466272,-430.21,0.00019587,2]
[377990178,1754651466285,-400.0,0.00019587,2]
[377990179,1754651466294,-621.62,0.00019587,2]
[377990180,1754651466303,-444.86,0.00019587,2]
[377990181,1754651466311,-400.0,0.00019587,2]
[377990182,1754651466321,-859.83,0.00019587,2]
[377990183,1754651466331,-889.86,0.00019587,2]
[377990184,1754651466340,-400.0,0.00019587,2]
[377990185,1754651466350,-400.0,0.00019587,2]
[377990186,1754651466362,-538.77,0.00019587,2]
[377990187,1754651466371,-597.6,0.00019587,2]
[377990188,1754651466381,-689.8,0.00019587,2]
[377990189,1754651466391,-400.0,0.00019587,2]
[377990190,1754651466401,-597.95,0.00019587,2]
[377990191,1754651466410,-400.0,0.00019587,2]
[377990192,1754651466418,-705.9,0.00019587,2]
[377990193,1754651466428,-400.0,0.00019587,2]
[377990194,1754651466437,-371.07997015,0.00019587,2]
[377990195,1754651466446,-400.0,0.00019587,2]
[377990196,1754651466455,-400.0,0.00019587,2]
[377990197,1754651466464,-400.0,0.00019587,2]
[377990198,1754651466473,-400.0,0.00019587,2]
[377990199,1754651466483,-489.29,0.00019587,2]
[377990200,1754651466492,-400.0,0.00019587,2]
[377990201,1754651466501,-400.0,0.00019587,2]
[377990202,1754651466510,-400.0,0.00019587,2]
[377990203,1754651466519,-400.0,0.00019587,2]
[377990204,1754651466528,-444.14,0.00019587,2]
[377990205,1754651466536,-400.0,0.00019587,2]
[377990206,1754651466546,-400.0,0.00019587,2]
[377990207,1754651466555,-400.0,0.00019587,2]
[377990208,1754651466564,-473.84,0.00019587,2]
[377990209,1754651466572,-644.33,0.00019587,2]
[377990210,1754651466581,-441.99,0.00019587,2]
[377990211,1754651466591,-672.78,0.00019587,2]
[377990212,1754651466600,-400.0,0.00019587,2]
[377990213,1754651466609,-400.0,0.00019587,2]
[377990214,1754651466617,-400.0,0.00019587,2]
[377990215,1754651466626,-1138.28,0.00019587,2]
[377990216,1754651466635,-544.35,0.00019587,2]
[377990217,1754651466645,-400.0,0.00019587,2]
[377990218,1754651466654,-823.51,0.00019587,2]
[377990219,1754651466663,-838.12,0.00019587,2]
[377990220,1754651466672,-467.79,0.00019587,2]
[377990221,1754651466681,-400.0,0.00019587,2]
[377990222,1754651466690,-685.44,0.00019587,2]
[377990223,1754651466699,-400.0,0.00019587,2]
[377990224,1754651466708,-672.35,0.00019587,2]
[377990225,1754651466717,-400.0,0.00019587,2]
[377990226,1754651466726,-813.42,0.00019587,2]
[377990227,1754651466735,-400.0,0.00019587,2]
[377990228,1754651466744,-637.51,0.00019587,2]
[377990229,1754651466755,-531.93,0.00019587,2]
[377990230,1754651466764,-400.0,0.00019587,2]
[377990231,1754651466773,-461.49,0.00019587,2]
[377990232,1754651466781,-400.0,0.00019587,2]
[377990233,1754651466790,-400.0,0.00019587,2]
[377990234,1754651466799,-846.74,0.00019587,2]
[377990235,1754651466808,-509.47,0.00019587,2]
[377990236,1754651466817,-400.0,0.00019587,2]
[377990237,1754651466828,-234.21808524,0.00019587,2]
[377990238,1754651466837,-400.0,0.00019587,2]
[377990239,1754651466846,-400.0,0.00019587,2]
[377990240,1754651466856,-781.03,0.00019587,2]
[377990241,1754651466865,-682.39,0.00019587,2]
[377990242,1754651466874,-558.5,0.00019587,2]
[377990243,1754651466883,-441.36,0.00019587,2]
[377990244,1754651466893,-617.21,0.00019587,2]
[377990245,1754651466902,-420.63,0.00019587,2]
[377990246,1754651466911,-400.0,0.00019587,2]
[377990247,1754651466920,-1170.06,0.00019587,2]
[377990248,1754651466929,-400.0,0.00019587,2]
[377990249,1754651466938,-668.55,0.00019587,2]
[377990250,1754651466947,-400.0,0.00019587,2]
[377990251,1754651466956,-400.0,0.00019587,2]
[377990252,1754651466965,-667.49,0.00019587,2]
[377990253,1754651466974,-400.0,0.00019587,2]
[377990254,1754651466983,-151.0,0.00019587,2]
[377990255,1754651466992,-400.0,0.00019587,2]
[377990256,1754651467002,-662.52,0.00019587,2]
[377990257,1754651467012,-757.4,0.00019587,2]
[377990258,1754651467021,-400.0,0.00019587,2]
[377990259,1754651467031,-763.02,0.00019587,2]
[377990260,1754651467040,-474.74,0.00019587,2]
[377990261,1754651467050,-561.16,0.00019587,2]
[377990262,1754651467059,-400.0,0.00019587,2]
[377990263,1754651467068,-807.87,0.00019587,2]
[377990264,1754651467077,-400.0,0.00019587,2]
[377990265,1754651467086,-790.84,0.00019587,2]
[377990266,1754651467095,-477.34,0.00019587,2]
[377990267,1754651467105,-623.55,0.00019587,2]
[377990268,1754651467114,-400.0,0.00019587,2]
[377990269,1754651467123,-400.0,0.00019587,2]
[377990270,1754651467132,-400.0,0.00019587,2]
[377990271,1754651467141,-427.57,0.00019587,2]
[377990272,1754651467150,-1000.25,0.00019587,2]
[377990273,1754651467160,-650.42,0.00019587,2]
[377990274,1754651467169,-483.65,0.00019587,2]
[377990275,1754651467178,-417.19,0.00019587,2]
[377990276,1754651467187,-709.92,0.00019587,2]
[377990277,1754651467197,-523.24,0.00019587,2]
[377990278,1754651467206,-400.0,0.00019587,2]
[377990279,1754651467215,-400.0,0.00019587,2]
[377990280,1754651467224,-873.15,0.00019587,2]
[377990281,1754651467234,-752.88,0.00019587,2]
[377990282,1754651467243,-400.0,0.00019587,2]
[377990283,1754651467252,-945.64,0.00019587,2]
[377990284,1754651467261,-753.52,0.00019587,2]
[377990285,1754651467270,-400.0,0.00019587,2]
[377990286,1754651467283,-421.07642321,0.00019587,2]
[377990287,1754651467292,-400.0,0.00019587,2]
[377990288,1754651467300,-1368.37,0.00019587,2]
[377990289,1754651467310,-400.0,0.00019587,2]
[377990290,1754651467319,-807.58,0.00019587,2]
[377990291,1754651467328,-508.92546795,0.00019587,2]
[377990292,1754651467337,-151.0,0.00019587,2]
[377990293,1754651467346,-1189.0,0.00019587,2]
[377990294,1754651467356,-713.83,0.00019587,2]
[377990295,1754651467365,-400.0,0.00019587,2]
[377990296,1754651467374,-765.71,0.00019587,2]
[377990297,1754651467383,-400.0,0.00019587,2]
[377990298,1754651467393,-826.65,0.00019587,2]
[377990299,1754651467402,-438.28,0.00019587,2]
[377990300,1754651467411,-769.89,0.00019587,2]
[377990301,1754651467420,-1295.53,0.00019587,2]
[377990302,1754651467430,-420.38,0.00019587,2]
[377990303,1754651467439,-400.0,0.00019587,2]
[377990304,1754651467449,-408.74,0.00019587,2]
[377990305,1754651467458,-400.0,0.00019587,2]
[377990306,1754651467468,-657.48,0.00019587,2]
[377990307,1754651467477,-890.12,0.00019587,2]
[377990308,1754651467486,-400.0,0.00019587,2]
[377990309,1754651467495,-499.465384,0.00019587,2]
[377990310,1754651467505,-1591.77,0.00019587,2]
[377990311,1754651467514,-627.33,0.00019587,2]
[377990312,1754651467523,-683.69,0.00019587,2]
[377990313,1754651467532,-502.75886504,0.00019587,2]
[377990314,1754651467541,-499.465384,0.00019587,2]
[377990315,1754651467550,-357.08820828,0.00019587,2]
[377990316,1754651467559,-801.86,0.00019587,2]
[377990317,1754651467568,-400.0,0.00019587,2]
[377990318,1754651467577,-400.0,0.00019587,2]
[377990319,1754651467586,-1840.34,0.00019587,2]
[377990320,1754651467595,-427.28,0.00019587,2]
[377990321,1754651467606,-807.93,0.00019587,2]
[377990322,1754651467614,-477.04,0.00019587,2]
[377990323,1754651467624,-400.0,0.00019587,2]
[377990324,1754651467633,-400.0,0.00019587,2]
[377990325,1754651467642,-469.53,0.00019587,2]
[377990326,1754651467652,-521.07,0.00019587,2]
[377990327,1754651467663,-790.8,0.00019587,2]
[377990328,1754651467672,-400.0,0.00019587,2]
[377990329,1754651467681,-400.0,0.00019587,2]
[377990330,1754651467690,-1191.83,0.00019587,2]
[377990331,1754651467699,-400.0,0.00019587,2]
[377990332,1754651467708,-720.72,0.00019587,2]
[377990333,1754651467717,-400.0,0.00019587,2]
[377990334,1754651467726,-400.0,0.00019587,2]
[377990335,1754651467736,-1529.75,0.00019587,2]
[377990336,1754651467744,-651.7,0.00019587,2]
[377990337,1754651467754,-743.37,0.00019587,2]
[377990338,1754651467763,-400.0,0.00019587,2]
[377990339,1754651467772,-548.60634644,0.00019587,2]
[377990340,1754651467781,-151.0,0.00019587,2]
[377990341,1754651467790,-400.0,0.00019587,2]
[377990342,1754651467799,-586.4,0.00019587,2]
[377990343,1754651467809,-987.81,0.00019587,2]
[377990344,1754651467818,-400.0,0.00019587,2]
[377990345,1754651467827,-400.0,0.00019587,2]
[377990346,1754651467837,-151.0,0.00019588,2]
[377990347,1754651467846,-176.939401,0.00019588,2]
[377990348,1754651467855,-400.0,0.00019588,2]
[377990349,1754651467865,-442.8,0.00019588,2]
[377990350,1754651467874,-400.0,0.00019588,2]
[377990351,1754651467883,-607.23,0.00019588,2]
[377990352,1754651467892,-643.73,0.00019588,2]
[377990353,1754651467901,-683.78,0.00019588,2]
[377990354,1754651467910,-540.1,0.00019588,2]
[377990355,1754651467919,-400.0,0.00019588,2]
[377990356,1754651467929,-657.41,0.00019588,2]
[377990357,1754651467938,-522.49,0.00019588,2]
[377990358,1754651467947,-400.0,0.00019588,2]
[377990359,1754651467956,-921.54,0.00019588,2]
[377990360,1754651467965,-518.2,0.00019588,2]
[377990361,1754651467975,-648.12,0.00019588,2]
[377990362,1754651467984,-400.0,0.00019588,2]
[377990363,1754651467993,-400.0,0.00019588,2]
[377990364,1754651468001,-400.0,0.00019588,2]
[377990365,1754651468011,-400.0,0.00019588,2]
[377990366,1754651468021,-679.35,0.00019588,2]
[377990367,1754651468030,-400.0,0.00019588,2]
[377990368,1754651468039,-400.0,0.00019588,2]
[377990369,1754651468049,-690.39,0.00019588,2]
[377990370,1754651468059,-400.0,0.00019588,2]
[377990371,1754651468069,-864.89,0.00019588,2]
[377990372,1754651468079,-400.0,0.00019588,2]
[377990373,1754651468088,-400.0,0.00019588,2]
[377990374,1754651468098,-400.0,0.00019588,2]
[377990375,1754651468107,-400.0,0.00019588,2]
[377990376,1754651468116,-400.0,0.00019588,2]
[377990377,1754651468126,-400.0,0.00019588,2]
[377990378,1754651468135,-400.0,0.00019588,2]
[377990379,1754651468144,-693.87,0.00019588,2]
[377990380,1754651468153,-400.0,0.00019588,2]
[377990381,1754651468162,-212.76820486,0.00019588,2]
[377990382,1754651468171,-479.27,0.00019588,2]
[377990383,1754651468180,-699.72,0.00019588,2]
[377990384,1754651468190,-444.41,0.00019588,2]
[377990385,1754651468200,-568.41,0.00019588,2]
[377990386,1754651468209,-400.0,0.00019588,2]
[377990387,1754651468219,-477.47,0.00019588,2]
[377990388,1754651468228,-812.06,0.00019588,2]
[377990389,1754651468239,-400.0,0.00019588,2]
[377990390,1754651468249,-483.27,0.00019588,2]
[377990391,1754651468258,-400.0,0.00019588,2]
[377990392,1754651468268,-596.47,0.00019588,2]
[377990393,1754651468286,-157.73640706,0.00019588,2]
[377990394,1754651468304,-432.6,0.00019588,2]
[377990395,1754651468323,-400.0,0.00019588,2]
[377990396,1754651468341,-400.0,0.00019588,2]
[377990397,1754651468352,-414.68,0.00019588,2]
[377990398,1754651468361,-643.05,0.00019588,2]
[377990399,1754651468371,-766.71,0.00019588,2]
[377990400,1754651468380,-915.31,0.00019588,2]
[377990401,1754651468390,-400.0,0.00019588,2]
[377990402,1754651468400,-400.0,0.00019588,2]
[377990403,1754651468410,-579.12,0.00019588,2]
[377990404,1754651468419,-400.0,0.00019588,2]
[377990405,1754651468429,-400.0,0.00019588,2]
[377990406,1754651468439,-334.71404299,0.00019588,2]
[377990407,1754651468449,-400.0,0.00019588,2]
[377990408,1754651468459,-693.83,0.00019588,2]
[377990409,1754651468469,-660.04,0.00019588,2]
[377990410,1754651468479,-426.29,0.00019588,2]
[377990411,1754651468488,-400.0,0.00019588,2]
[377990412,1754651468498,-400.0,0.00019588,2]
[377990413,1754651468509,-400.0,0.00019588,2]
[377990414,1754651468519,-1035.97,0.00019588,2]
[377990415,1754651468529,-400.0,0.00019588,2]
[377990416,1754651468539,-400.0,0.00019588,2]
[377990417,1754651468549,-400.0,0.00019588,2]
[377990418,1754651468558,-408.21,0.00019588,2]
[377990419,1754651468568,-400.0,0.00019588,2]
[377990420,1754651468579,-802.32,0.00019588,2]
[377990421,1754651468590,-400.0,0.00019588,2]
[377990422,1754651468600,-640.75,0.00019588,2]
[377990423,1754651468610,-400.0,0.00019588,2]
[377990424,1754651468620,-847.13,0.00019588,2]
[377990425,1754651468629,-619.79,0.00019588,2]
[377990426,1754651468639,-1190.71,0.00019588,2]
[377990427,1754651468650,-852.65,0.00019588,2]
[377990428,1754651468659,-404.75,0.00019588,2]
[377990429,1754651468669,-400.0,0.00019588,2]
[377990430,1754651468678,-634.45,0.00019588,2]
[377990431,1754651468687,-400.0,0.00019588,2]
[377990432,1754651468697,-772.4,0.00019588,2]
[377990433,1754651468706,-428.33,0.00019588,2]
[377990434,1754651468716,-500.2,0.00019588,2]
[377990435,1754651468725,-928.76,0.00019588,2]
[377990436,1754651468735,-886.46,0.00019588,2]
[377990437,1754651468745,-789.09,0.00019588,2]
[377990438,1754651468755,-400.0,0.00019588,2]
[377990439,1754651468764,-855.66,0.00019588,2]
[377990440,1754651468773,-349.52066521,0.00019588,2]
[377990441,1754651468783,-483.17,0.00019588,2]
[377990442,1754651468792,-1283.05,0.00019588,2]
[377990443,1754651468802,-644.58,0.00019588,2]
[377990444,1754651468812,-400.0,0.00019588,2]
[377990445,1754651468822,-674.06,0.00019588,2]
[377990446,1754651468832,-584.51,0.00019588,2]
[377990447,1754651468841,-400.0,0.00019588,2]
[377990448,1754651468851,-1155.7,0.00019588,2]
[377990449,1754651468861,-868.55,0.00019588,2]
[377990450,1754651468871,-443.81,0.00019588,2]
[377990451,1754651468880,-734.81,0.00019588,2]
[377990452,1754651468890,-400.0,0.00019588,2]
[377990453,1754651468900,-400.0,0.00019588,2]
[377990454,1754651468910,-400.0,0.00019588,2]
[377990455,1754651468919,-941.46,0.00019588,2]
[377990456,1754651468929,-551.83,0.00019588,2]
[377990457,1754651468939,-463.75,0.00019588,2]
[377990458,1754651468948,-513.31,0.00019588,2]
[377990459,1754651468958,-400.0,0.00019588,2]
[377990460,1754651468968,-1155.19,0.00019588,2]
[377990461,1754651468978,-530.86,0.00019588,2]
[377990462,1754651468987,-690.8,0.00019588,2]
[377990463,1754651468997,-724.8,0.00019588,2]